bitfinex-derivatives/quotes_ETHF0:USTF0_20250807
["timestamp","ask_amount","ask_price","bid_price","bid_amount"]
[1754527764250,18.526,3670.9,3670.8,2.28652]
[1754527764445,19.27298351,3670.9,3670.8,2.28652]
[1754527765551,18.526,3670.9,3670.8,2.28652]
[1754527765850,1.1472,3671.2,3671.1,1.7418]
[1754527766050,20.42016957,3671.2,3671.1,1.7418]
[1754527766248,20.73326957,3671.2,3671.1,1.7418]
[1754527768054,2.20726957,3671.2,3671.1,1.7418]
[1754527768346,19.9853,3671.2,3671.1,1.7418]
[1754527768649,20.73226957,3671.2,3671.1,1.7418]
[1754527769449,2.20726957,3671.2,3671.1,1.7418]
[1754527769645,19.9853,3671.2,3671.1,1.7418]
[1754527769948,20.73226957,3671.2,3671.1,1.7418]
[1754527776554,2.20726957,3671.2,3671.1,1.7418]
[1754527776754,20.73126957,3671.2,3671.1,1.7418]
[1754527779155,21.01306957,3671.2,3671.1,1.7418]
[1754527780858,20.2661,3671.2,3671.1,1.7418]
[1754527781051,21.01412521,3671.2,3671.1,1.7418]
[1754527795268,20.23692521,3671.2,3671.1,1.7418]
[1754527795470,20.54422521,3671.2,3671.1,1.7418]
[1754527795769,20.75272521,3671.2,3671.1,1.7418]
[1754527800565,0.74802521,3671.2,3671.1,6.12839601]
[1754527800763,0.74802521,3671.6,3671.5,1.7269]
[1754527800962,19.26902521,3671.6,3671.5,6.11349601]
[1754527801361,0.74802521,3671.6,3671.5,6.65812601]
[1754527801562,0.74802521,3671.8,3671.7,1.2114]
[1754527801771,0.74802521,3671.9,3671.8,2.90569601]
[1754527802158,0.74802521,3672.2,3672.1,1.7269]
[1754527802363,18.521,3672.5,3672.4,0.54449]
[1754527802566,19.26902521,3672.5,3672.4,3.45018601]
[1754527802764,18.521,3672.5,3672.4,3.73893656]
[1754527802964,19.2786,3672.6,3672.5,1.7269]
[1754527803160,20.02530583,3672.6,3672.5,1.7269]
[1754527803366,19.2786,3672.6,3672.5,1.7269]
[1754527803567,18.8129,3672.6,3672.5,4.9347]
[1754527803767,18.521,3672.6,3672.5,4.9347]
[1754527803962,0.7576,3673.0,3672.9,0.765]
[1754527804274,0.75221651,3673.3,3673.0,2.2713]
[1754527804473,18.518,3673.2,3673.1,1.7269]
[1754527804669,40.8,3673.3,3673.2,1.21118]
[1754527804873,40.8,3673.3,3673.2,3.73882656]
[1754527805062,3.2078,3674.1,3673.7,1.2111]
[1754527805267,0.6579,3674.0,3673.9,1.2716]
[1754527805463,0.4657,3674.3,3674.1,0.4553]
[1754527805669,0.4657,3674.3,3674.2,4.9347]
[1754527805670,0.1922,3674.3,3674.2,4.9347]
[1754527805864,0.7732,3674.6,3674.5,1.4318]
[1754527806070,19.2197,3674.8,3674.7,0.9326]
[1754527806371,19.5083,3674.8,3674.2,3.2078]
[1754527806675,1.7479,3674.3,3674.2,4.4355]
[1754527806881,1.7479,3674.3,3674.2,4.625]
[1754527807068,1.7479,3674.3,3674.2,4.9347]
[1754527808369,1.7479,3674.3,3674.2,1.7269]
[1754527809472,1.4593,3674.3,3674.2,1.7269]
[1754527812580,0.7017,3674.0,3673.9,0.9619]
[1754527812879,1.4593,3673.6,3673.5,0.9765]
[1754527813573,1.4593,3673.6,3673.5,1.7269]
[1754527815371,0.6861,3673.6,3673.5,1.7269]
[1754527815576,0.4841,3673.6,3673.5,1.7269]
[1754527815775,0.1922,3673.6,3673.5,1.7269]
[1754527816872,1.4593,3673.6,3673.5,1.7269]
[1754527818482,1.4593,3673.6,3673.5,0.9551]
[1754527818781,1.7479,3673.6,3673.5,1.7269]
[1754527818974,1.4593,3673.6,3673.5,1.4318]
[1754527819278,1.7479,3673.5,3673.4,3.8532]
[1754527819477,0.9903,3673.5,3673.4,4.625]
[1754527819677,1.7479,3673.5,3673.4,4.625]
[1754527819880,1.4593,3673.5,3673.4,4.9347]
[1754527820080,0.7017,3673.9,3673.8,0.4773]
[1754527820381,1.4593,3673.9,3673.8,1.7269]
[1754527822383,1.7479,3673.9,3673.8,1.7269]
[1754527823274,1.7479,3673.9,3673.6,0.54431]
[1754527823475,1.7479,3673.8,3673.7,0.3097]
[1754527823789,1.7479,3673.8,3673.7,1.7269]
[1754527825185,1.7479,3673.7,3673.6,1.2502]
[1754527825381,1.4593,3673.7,3673.6,1.2502]
[1754527825682,1.4593,3673.7,3673.6,1.7269]
[1754527825882,1.4593,3673.7,3673.6,1.4172]
[1754527826082,1.7479,3673.7,3673.6,1.7269]
[1754527826583,1.4593,3673.7,3673.6,1.2716]
[1754527826783,1.4593,3673.7,3673.6,1.7269]
[1754527829389,1.89108543,3674.0,3673.9,0.681]
[1754527829585,1.89108543,3674.0,3673.9,1.7015]
[1754527829891,2.17688543,3674.0,3673.9,1.7015]
[1754527831085,0.74928543,3674.0,3673.9,3.16904656]
[1754527831393,4.25118543,3674.2,3674.1,1.7015]
[1754527831688,5.38468543,3674.2,3674.1,1.7015]
[1754527832982,2.17688543,3674.2,3674.1,1.7015]
[1754527836193,3.15460594,3674.2,3674.1,1.7015]
[1754527836498,0.74928543,3674.2,3674.1,1.7015]
[1754527837195,2.66350594,3674.2,3674.1,1.7015]
[1754527837399,2.47278543,3674.2,3674.1,0.2919]
[1754527837592,2.47278543,3674.2,3674.1,1.2169]
[1754527837792,2.47278543,3674.2,3674.1,0.4883]
[1754527838194,3.45050594,3674.2,3674.1,0.4883]
[1754527838397,2.47278543,3674.2,3674.1,0.9169]
[1754527838599,2.47278543,3674.2,3674.1,1.2169]
[1754527839096,3.45050594,3674.2,3674.1,1.2169]
[1754527839702,3.45050594,3674.2,3674.1,1.5006]
[1754527840703,3.45050594,3674.2,3674.1,1.7015]
[1754527841600,3.45050594,3674.2,3674.1,0.2919]
[1754527841801,3.45050594,3674.2,3674.1,0.9169]
[1754527842005,3.44905894,3674.2,3674.1,1.5006]
[1754527842197,2.47133843,3674.2,3674.1,1.7015]
[1754527842403,3.44985172,3674.2,3674.1,1.7015]
[1754527843304,1.72635172,3674.2,3674.1,1.7015]
[1754527843606,2.46625172,3674.2,3674.1,1.7015]
[1754527843802,2.66285172,3674.2,3674.1,1.7015]
[1754527843996,2.57405172,3674.2,3674.1,1.7015]
[1754527844195,2.86815172,3674.2,3674.1,1.7015]
[1754527846208,1.88963843,3674.2,3674.1,1.7015]
[1754527847006,0.74783843,3674.2,3674.1,1.7015]
[1754527847514,2.4963683,3675.0,3674.1,1.7015]
[1754527847515,0.97851329,3674.7,3674.5,2.24568]
[1754527847809,0.97851329,3674.9,3674.8,1.7015]
[1754527848007,1.66621329,3675.1,3675.0,0.681]
[1754527848210,0.6877,3675.1,3675.0,1.7015]
[1754527848604,0.6877,3675.1,3675.0,0.681]
[1754527848605,1.7235,3675.1,3675.0,0.681]
[1754527848809,1.7235,3675.1,3675.0,0.981]
[1754527849311,0.6877,3674.8,3674.7,0.681]
[1754527849509,0.6877,3674.8,3674.7,1.7015]
[1754527849715,1.7235,3674.8,3674.7,1.7015]
[1754527850909,1.7235,3674.8,3674.7,2.24565]
[1754527852609,1.7235,3674.8,3674.7,0.74055]
[1754527852908,1.7235,3674.8,3674.7,2.24565]
[1754527855011,18.503,3675.2,3674.9,0.54411]
[1754527855216,1.7235,3675.0,3674.9,1.22511]
[1754527855812,1.7235,3675.0,3674.9,1.13601]
[1754527856110,1.7235,3675.0,3674.9,1.81701]
[1754527856305,1.7235,3675.0,3674.9,2.24561]
[1754527856509,1.7235,3675.0,3674.9,1.76101]
[1754527856708,1.7235,3675.0,3674.9,2.24561]
[1754527860612,18.503,3675.2,3674.9,2.24561]
[1754527860814,18.503,3675.2,3675.1,1.23099]
[1754527861115,19.1972,3675.2,3675.1,2.28779]
[1754527861315,20.2186,3675.2,3675.1,2.28779]
[1754527863412,1.54397,3676.0,3675.4,0.54405]
[1754527863616,20.2126,3675.9,3675.8,0.6869]
[1754527863812,20.2126,3675.9,3675.8,1.7437]
[1754527863813,20.93770885,3675.9,3675.8,1.7437]
[1754527864112,43.24070885,3675.9,3675.8,1.7437]
[1754527864313,61.73770885,3675.9,3675.8,1.7437]
[1754527864511,60.51720885,3675.9,3675.8,1.7437]
[1754527864706,43.04160885,3675.9,3675.8,1.7437]
[1754527865018,61.53860885,3675.9,3675.8,1.7437]
[1754527865218,60.8135,3675.9,3675.8,1.7437]
[1754527868516,18.9921,3675.9,3675.8,3.21124656]
[1754527868924,1.0,3676.0,3675.9,1.23088]
[1754527869120,1.0,3676.0,3675.9,2.28768]
[1754527869811,1.4951,3676.0,3675.9,2.28768]
[1754527870017,2.7156,3676.0,3675.9,1.7437]
[1754527870217,1.7156,3675.9,3675.8,0.75128]
[1754527870427,1.7156,3675.9,3675.8,1.80808]
[1754527870715,1.7156,3675.9,3675.8,2.28768]
[1754527870920,1.7156,3675.9,3675.8,1.7437]
[1754527879420,0.6942,3675.9,3675.5,3.2078]
[1754527879726,1.7156,3675.7,3675.6,1.3005]
[1754527879923,1.0214,3675.5,3675.2,0.6136]
[1754527880227,1.7156,3675.3,3675.2,1.7437]
[1754527881831,1.23828,3675.2,3675.0,0.31]
[1754527882029,1.7156,3675.1,3675.0,0.9969]
[1754527882231,1.7156,3675.1,3675.0,1.7437]
[1754527882722,1.7156,3675.1,3675.0,0.2073]
[1754527883429,0.3058,3674.8,3674.7,3.75195]
[1754527883638,1.4167,3674.8,3674.7,5.49565]
[1754527883832,1.4167,3674.8,3674.7,4.9515]
[1754527884133,1.7156,3674.8,3674.7,6.41904656]
[1754527885733,1.7156,3674.8,3674.7,3.21124656]
[1754527886131,1.23835,3674.7,3674.3,0.4432]
[1754527886426,1.23839,3674.5,3674.4,1.7437]
[1754527886825,1.83469,3674.5,3674.4,1.7437]
[1754527887029,2.25979,3674.5,3674.4,1.7437]
[1754527887936,1.7156,3674.5,3674.4,1.7437]
[1754527890938,1.5162,3674.8,3674.7,0.698]
[1754527891240,1.7221,3674.8,3674.7,0.698]
[1754527891533,3.2078,3675.4,3675.2,0.54408]
[1754527891741,3.7056,3675.4,3675.3,3.22154656]
[1754527891937,4.4259,3675.4,3675.3,1.754]
[1754527892239,1.7221,3675.4,3675.3,1.754]
[1754527892436,3.2078,3676.2,3675.9,1.2628]
[1754527892630,3.2078,3676.2,3675.9,3.22154656]
[1754527893037,43.5221,3676.0,3675.6,1.00542]
[1754527893238,1.424,3675.4,3675.3,3.9058]
[1754527893428,1.7221,3675.4,3675.3,1.754]
[1754527894443,0.7037,3675.2,3675.1,1.754]
[1754527894634,1.7221,3675.2,3675.1,1.754]
[1754527895630,1.7221,3675.2,3675.1,1.2926]
[1754527895830,1.7221,3675.2,3675.1,1.754]
[1754527896739,1.7221,3675.2,3675.1,1.2926]
[1754527897636,1.7221,3675.2,3675.1,0.4002]
[1754527898430,1.4271,3674.9,3674.8,4.1926]
[1754527898638,1.7221,3674.9,3674.8,4.9618]
[1754527899436,1.7221,3674.9,3674.8,3.2078]
[1754527899635,1.7221,3674.5,3674.4,4.9618]
[1754527901541,0.91769819,3675.2,3675.1,1.754]
[1754527901847,0.4978,3675.2,3675.1,3.22154656]
[1754527902543,1.0184,3675.4,3675.3,0.698]
[1754527902741,0.7234,3675.4,3675.3,1.754]
[1754527902941,0.4253,3675.4,3675.3,1.754]
[1754527903438,0.6173,3675.4,3675.3,1.754]
[1754527903637,1.7221,3675.4,3675.3,1.754]
[1754527903945,1.7221,3675.0,3674.9,0.698]
[1754527904642,1.7221,3675.0,3674.9,1.754]
[1754527904842,1.7221,3675.0,3674.4,4.67534656]
[1754527904843,1.7221,3675.0,3674.6,0.4614]
[1754527905040,1.7221,3674.7,3674.6,1.754]
[1754527905442,1.7221,3674.7,3674.6,0.698]
[1754527905843,1.7221,3674.7,3674.6,1.754]
[1754527906442,1.7221,3674.7,3674.6,0.698]
[1754527906746,1.7221,3674.7,3674.4,3.2078]
[1754527906747,1.7221,3674.5,3674.4,3.2078]
[1754527906936,1.7221,3674.5,3674.4,3.4122]
[1754527907335,42.5221,3674.5,3674.4,3.608]
[1754527907536,42.5221,3674.5,3674.4,4.9618]
[1754527908345,42.5221,3674.5,3674.4,3.2078]
[1754527908546,0.7037,3674.1,3674.0,4.45005]
[1754527908742,1.7221,3674.1,3674.0,3.9058]
[1754527908945,1.7221,3674.1,3674.0,3.71]
[1754527909151,0.7037,3673.8,3673.7,1.754]
[1754527909449,1.424,3673.8,3673.5,3.2078]
[1754527909747,1.7221,3673.6,3673.5,4.9618]
[1754527910848,1.7221,3673.6,3673.5,1.754]
[1754527911950,1.424,3673.6,3673.5,1.754]
[1754527912147,1.129,3673.6,3673.5,1.754]
[1754527912353,1.0018,3673.8,3673.7,0.698]
[1754527912653,1.7221,3673.8,3673.7,1.754]
[1754527914657,0.7037,3673.5,3673.4,1.2926]
[1754527914854,0.7037,3673.5,3673.2,3.2078]
[1754527914855,1.7221,3673.3,3673.2,3.9058]
[1754527915155,1.7221,3673.3,3673.2,0.698]
[1754527915753,1.24807,3673.3,3673.0,0.2868]
[1754527916059,1.7221,3673.1,3673.0,0.4912]
[1754527916261,1.7221,3673.1,3673.0,1.2926]
[1754527916460,42.5221,3673.1,3673.0,1.754]
[1754527916653,42.5221,3673.1,3673.0,1.4462]
[1754527916856,42.5221,3673.1,3673.0,0.5022]
[1754527918156,1.7221,3672.8,3672.7,4.9618]
[1754527918355,1.7221,3672.8,3672.7,0.4002]
[1754527918660,0.7037,3672.5,3672.4,1.754]
[1754527918861,1.7221,3672.5,3672.4,1.754]
[1754527924262,59.88439,3673.1,3672.4,0.698]
[1754527924469,40.8,3673.1,3673.0,1.7025]
[1754527925360,41.2588,3673.1,3673.0,1.7025]
[1754527927265,40.8,3673.1,3673.0,1.7025]
[1754527927567,18.545,3673.3,3673.0,1.20919]
[1754527927766,18.545,3673.3,3673.2,0.6648]
[1754527927966,18.545,3673.3,3673.2,1.7025]
[1754527928567,18.7476,3673.3,3673.2,1.7025]
[1754527929066,19.4946,3673.3,3673.2,1.7025]
[1754527929266,20.2887,3673.3,3673.2,1.7025]
[1754527929462,19.0358,3673.3,3673.2,1.7025]
[1754527929662,18.543,3673.4,3673.2,1.7025]
[1754527929862,19.4926,3673.4,3673.3,1.7025]
[1754527930567,19.6967,3673.4,3673.3,1.7025]
[1754527930763,20.2867,3673.4,3673.3,1.7025]
[1754527930958,0.6949,3673.1,3673.0,0.6648]
[1754527931164,1.7437,3673.1,3673.0,1.7025]
[1754527932264,0.6949,3673.1,3673.0,1.7025]
[1754527932471,20.2867,3673.4,3673.3,0.6648]
[1754527932670,20.2867,3673.4,3673.3,1.7025]
[1754527935773,20.2867,3673.4,3673.3,0.6648]
[1754527936075,1.7437,3672.8,3672.7,1.7025]
[1754527936970,1.7437,3672.8,3672.7,2.24695]
[1754527937770,1.7437,3672.8,3672.7,1.7025]
[1754527939276,1.7437,3672.8,3672.7,0.6648]
[1754527939772,1.7437,3672.8,3672.6,1.46709632]
[1754527940272,19.08141,3673.0,3672.6,1.46709632]
[1754527940273,1.7437,3672.7,3672.6,2.87169632]
[1754527940473,1.7437,3672.7,3672.6,3.16959632]
[1754527942573,0.6949,3672.4,3672.3,3.16959632]
[1754527942773,1.7437,3672.4,3672.3,1.7025]
[1754527944577,1.7437,3672.4,3672.3,1.2598]
[1754527944876,1.7437,3672.4,3672.3,1.7025]
[1754527950472,4.18631329,3673.3,3672.9,0.54442]
[1754527950680,4.18631329,3673.3,3672.8,1.4195]
[1754527950681,3.8927,3673.3,3673.2,1.7158]
[1754527951081,22.4277,3673.3,3673.2,1.7158]
[1754527951282,19.94725321,3673.3,3673.2,1.7158]
[1754527951583,1.83765321,3673.3,3673.2,1.7158]
[1754527951774,20.2443,3673.3,3673.2,1.7158]
[1754527952075,20.97165321,3673.3,3673.2,1.7158]
[1754527954587,0.6849,3672.8,3672.5,0.54447]
[1754527954789,1.7093,3672.7,3672.6,1.7158]
[1754527955085,1.7093,3672.7,3672.6,0.6932]
[1754527956386,3.2078,3673.3,3673.1,0.6932]
[1754527956387,0.6849,3673.2,3673.1,0.6932]
[1754527956582,0.2031,3673.2,3673.1,0.6932]
[1754527956787,18.7421,3673.2,3673.1,0.6932]
[1754527956982,19.46916895,3673.2,3673.1,0.9841]
[1754527957286,19.46916895,3673.2,3673.1,1.7158]
[1754527957782,20.37636895,3673.2,3673.1,1.7158]
[1754527958082,21.09434895,3673.2,3672.9,1.46709632]
[1754527958288,1.7093,3672.8,3672.7,1.7158]
[1754527958488,1.7093,3672.8,3672.7,0.6932]
[1754527958992,20.2573,3672.8,3672.7,1.7158]
[1754527959285,20.2573,3672.8,3672.7,1.2737]
[1754527959474,20.2573,3672.8,3672.7,0.6932]
[1754527959887,1.7093,3672.8,3672.7,0.3969]
[1754527960187,20.2603,3672.8,3672.7,0.3969]
[1754527961482,20.2613,3672.8,3672.7,0.3969]
[1754527961783,20.2613,3672.8,3672.5,0.4421]
[1754527961989,1.7093,3672.2,3672.1,4.9236]
[1754527962585,1.7093,3672.2,3672.1,0.6932]
[1754527963083,42.5093,3672.2,3672.1,0.6932]
[1754527963881,42.5093,3672.2,3672.1,1.2737]
[1754527964186,42.5093,3672.2,3672.1,1.7158]
[1754527965984,18.551,3672.4,3672.3,1.0226]
[1754527966186,1.22932,3672.9,3672.8,0.6932]
[1754527966488,60.57932,3672.9,3672.8,1.7158]
[1754527966688,60.76207491,3672.9,3672.8,1.7158]
[1754527966887,0.2031,3672.4,3672.3,0.7421]
[1754527967083,1.7093,3672.4,3672.3,1.2377]
[1754527967486,1.7093,3672.4,3672.3,2.2603]
[1754527972596,18.559,3672.5,3672.3,2.2603]
[1754527972784,18.559,3672.5,3672.4,1.0226]
[1754527972989,20.2683,3672.5,3672.4,1.7158]
[1754527977692,20.2683,3672.5,3672.4,4.9236]
[1754527977898,19.0484,3672.5,3672.4,4.9236]
[1754527978099,40.8,3672.9,3672.8,0.6932]
[1754527978301,61.09392514,3672.9,3672.8,1.7158]
[1754527979394,0.3081,3673.4,3672.9,0.54442]
[1754527979594,2.46638456,3673.4,3673.3,0.2056]
[1754527979794,61.81138456,3673.4,3673.3,0.7818]
[1754527981701,0.6731,3673.2,3673.1,0.4289]
[1754527981900,20.2828,3673.2,3673.1,0.4289]
[1754527982098,21.00938456,3673.2,3673.1,0.4289]
[1754527982497,25.94268456,3673.2,3672.4,3.2078]
[1754527982692,0.6731,3672.6,3672.5,1.426]
[1754527982893,19.2141,3672.6,3672.5,1.7081]
[1754527983299,20.2808,3672.6,3672.5,1.7081]
[1754527984806,20.2808,3672.6,3672.5,0.703]
[1754527985495,20.54939842,3672.6,3672.3,1.0051]
[1754527985700,1.7398,3672.4,3672.3,1.7081]
[1754527985902,18.544,3672.4,3672.3,1.7081]
[1754527986097,0.9375,3673.0,3672.9,1.7081]
[1754527986303,19.4865,3673.0,3672.9,1.7081]
[1754527986605,60.2865,3673.0,3672.9,1.7081]
[1754527987109,1.7398,3673.3,3673.2,1.7081]
[1754527987400,19.9827,3673.3,3673.2,3.17533216]
[1754527987598,20.70946404,3673.3,3673.2,3.17533216]
[1754527988406,20.71046404,3673.3,3673.2,3.17533216]
[1754527988706,20.71046404,3673.3,3673.2,1.7081]
[1754527989007,21.01856404,3673.3,3673.2,1.7081]
[1754527989700,21.01850465,3673.3,3673.2,1.7081]
[1754527991504,19.95180465,3673.3,3673.2,1.7081]
[1754527991703,19.27270465,3673.3,3673.2,1.7081]
[1754527994810,20.40410465,3673.3,3673.2,1.7081]
[1754527995406,0.72670465,3673.3,3673.2,1.7081]
[1754527995610,18.541,3673.3,3673.2,0.703]
[1754527995809,19.26770465,3673.3,3673.2,0.703]
[1754527996313,0.72670465,3673.3,3673.2,1.7081]
[1754527996499,4.9476,3674.0,3673.9,1.7081]
[1754527996698,22.95545149,3674.0,3673.9,1.7081]
[1754527996909,63.75545149,3674.0,3673.9,1.7081]
[1754527998310,64.82215149,3674.0,3673.9,1.7081]
[1754527999408,64.0957,3674.0,3673.9,1.7081]
[1754528001810,63.029,3674.0,3673.9,1.7081]
[1754528002005,3.2078,3674.0,3673.9,1.7081]
[1754528002211,0.72536339,3674.2,3674.1,0.703]
[1754528002416,18.546,3674.2,3674.1,1.7081]
[1754528002614,18.7399,3674.2,3674.1,1.7081]
[1754528002915,40.8,3674.4,3674.1,1.7081]
[1754528003213,18.546,3674.3,3674.2,2.25233]
[1754528003712,19.0262,3674.3,3674.2,2.25233]
[1754528004213,20.2858,3674.3,3674.2,2.25233]
[1754528004415,20.2858,3674.3,3674.2,1.7081]
[1754528004615,20.2858,3674.3,3674.2,1.2792]
[1754528005008,20.2858,3674.3,3673.5,2.39077561]
[1754528005009,0.6731,3674.0,3673.6,0.4289]
[1754528005207,0.6731,3674.0,3673.6,2.25242]
[1754528005208,1.7398,3673.7,3673.6,2.25242]
[1754528007924,1.7398,3673.7,3673.6,1.82352]
[1754528008215,1.7398,3673.7,3673.6,2.25242]
[1754528008412,1.7398,3673.7,3673.3,1.0051]
[1754528008610,0.6731,3673.4,3673.3,1.7081]
[1754528008815,18.546,3673.6,3673.1,0.74209]
[1754528008816,1.7223,3673.2,3673.1,0.74209]
[1754528009311,1.7223,3673.2,3673.1,2.28109]
[1754528009507,1.7223,3673.2,3673.1,1.98249]
[1754528009712,1.7223,3673.2,3673.1,2.28109]
[1754528010217,1.7223,3673.2,3673.1,0.54439]
[1754528011719,1.7198,3673.1,3673.0,0.5444]
[1754528011910,0.6636,3673.4,3673.3,1.23516]
[1754528012217,19.2156,3673.4,3673.3,3.74819031]
[1754528012617,20.2718,3673.4,3673.3,3.74819031]
[1754528013019,1.1119,3673.4,3673.3,3.74819031]
[1754528013216,4.9276,3673.7,3673.6,1.23512]
[1754528013413,4.9276,3673.7,3673.6,2.28102]
[1754528013615,23.4776,3673.7,3673.6,3.74815031]
[1754528013816,22.8697,3673.7,3673.6,3.74815031]
[1754528014126,23.4776,3673.7,3673.6,3.74815031]
[1754528014525,4.9276,3673.7,3673.6,2.28102]
[1754528014726,23.4806,3673.7,3673.6,2.28102]
[1754528014924,1.7198,3673.6,3673.5,0.54433]
[1754528016120,1.7198,3673.6,3673.5,0.74203]
[1754528016322,1.7198,3673.6,3673.5,1.84353]
[1754528018028,1.7198,3673.6,3673.5,2.28103]
[1754528020426,0.4483,3673.5,3673.4,0.54434]
[1754528020636,1.7198,3673.5,3673.4,0.74204]
[1754528020926,1.7198,3673.5,3673.4,2.28104]
[1754528023521,1.7198,3673.5,3673.1,4.67493031]
[1754528023725,0.6636,3673.3,3673.2,1.7367]
[1754528023925,1.7198,3673.3,3673.2,1.7367]
[1754528024933,1.7198,3673.3,3673.2,2.28107]
[1754528027027,1.7198,3673.3,3673.1,3.75218]
[1754528027232,1.7198,3673.2,3673.1,3.75218]
[1754528027739,1.7198,3673.2,3673.1,0.54438]
[1754528028139,42.5198,3673.2,3673.1,0.4963]
[1754528028333,0.6636,3673.0,3672.9,1.7367]
[1754528028637,1.7198,3672.7,3672.6,2.28116]
[1754528029026,1.7198,3672.7,3672.6,1.23526]
[1754528029238,1.7198,3672.7,3672.6,2.28116]
[1754528030138,0.1903,3672.7,3672.6,2.28116]
[1754528030339,0.6636,3672.9,3672.8,1.23523]
[1754528030539,1.1119,3672.9,3672.8,2.28113]
[1754528030735,41.2483,3673.2,3673.1,1.7367]
[1754528030940,18.7313,3673.4,3673.3,0.6908]
[1754528031338,18.7313,3673.4,3673.3,1.7367]
[1754528031934,20.2608,3673.4,3673.3,1.7367]
[1754528032849,1.7198,3673.4,3673.3,1.7367]
[1754528034648,20.2618,3673.4,3673.3,1.7367]
[1754528035449,20.2598,3673.4,3673.3,1.7367]
[1754528035642,1.436,3673.3,3673.2,0.6084]
[1754528035843,1.7198,3673.3,3673.2,1.7367]
[1754528037549,20.2558,3673.3,3673.2,1.7367]
[1754528042352,1.7198,3673.3,3673.2,1.7367]
[1754528042553,20.2508,3673.3,3673.2,1.7367]
[1754528046354,1.7198,3673.3,3673.2,1.7367]
[1754528046555,20.2438,3673.3,3673.2,1.7367]
[1754528048356,1.7198,3673.3,3673.2,1.7367]
[1754528048554,20.2438,3673.3,3673.2,1.7367]
[1754528051557,20.2378,3673.3,3673.2,1.7367]
[1754528054459,1.7198,3673.3,3673.2,1.7367]
[1754528054661,20.2378,3673.3,3673.2,1.7367]
[1754528055455,1.7198,3673.3,3673.2,1.7367]
[1754528055657,20.2378,3673.3,3673.2,1.7367]
[1754528058362,1.7198,3673.3,3673.2,1.7367]
[1754528058557,20.2378,3673.3,3673.2,1.7367]
[1754528060057,20.2378,3673.3,3673.2,4.9445]
[1754528060262,20.2378,3673.3,3673.2,1.7367]
[1754528061357,1.7214,3673.0,3672.9,0.54442]
[1754528061661,1.7214,3673.0,3672.9,2.27472]
[1754528061955,1.7214,3673.0,3672.9,0.6967]
[1754528062156,0.4098,3672.6,3672.5,0.93297]
[1754528062363,1.7214,3672.6,3672.5,1.7303]
[1754528067567,20.2404,3672.6,3672.5,1.7303]
[1754528068571,1.7214,3672.5,3672.4,3.75229]
[1754528068759,1.7214,3672.5,3672.4,4.44899]
[1754528069069,1.7214,3672.5,3672.4,5.53259]
[1754528069465,0.6944,3672.5,3672.1,0.54453]
[1754528069660,1.4668,3672.2,3672.1,0.54453]
[1754528069861,0.5104,3672.0,3671.9,3.2078]
[1754528070063,42.5503,3672.0,3671.9,3.2078]
[1754528070368,61.0693,3672.0,3671.9,3.2078]
[1754528070565,61.0693,3672.0,3671.9,4.9707]
[1754528072565,61.0693,3672.0,3671.9,3.2078]
[1754528073071,61.0693,3672.0,3671.9,4.9707]
[1754528073663,20.2693,3672.0,3671.9,4.9707]
[1754528075673,20.2693,3672.0,3671.9,3.2078]
[1754528075968,0.7055,3671.8,3671.7,0.5446]
[1754528076168,0.7613,3671.7,3671.6,0.54461]
[1754528076368,1.7503,3671.4,3671.3,3.2078]
[1754528076673,20.2723,3671.4,3671.3,4.658]
[1754528076868,20.2723,3671.4,3671.3,4.9707]
[1754528077474,20.2723,3671.4,3671.3,1.7629]
[1754528078468,19.2275,3671.4,3671.3,1.7629]
[1754528078668,3.2078,3671.8,3671.4,0.54464]
[1754528078873,19.485,3671.7,3671.6,0.6793]
[1754528079075,20.0782,3671.7,3671.6,1.7629]
[1754528079268,40.8,3672.3,3671.6,1.7629]
[1754528079269,1.4668,3672.0,3671.9,2.30746]
[1754528079469,20.2733,3672.0,3671.9,1.7629]
[1754528079773,18.7246,3672.0,3671.9,1.7629]
[1754528080369,20.0782,3672.0,3671.9,1.7629]
[1754528081069,20.2733,3672.0,3671.9,1.7629]
[1754528084975,1.7503,3672.0,3671.9,1.7629]
[1754528085181,20.2743,3672.0,3671.9,1.7629]
[1754528085376,1.7503,3672.0,3671.9,1.7629]
[1754528085577,19.6811,3672.0,3671.9,1.7629]
[1754528085881,20.2743,3672.0,3671.9,1.7629]
[1754528086482,4.4542,3672.2,3672.1,0.6793]
[1754528086676,23.4821,3672.2,3672.1,1.7629]
[1754528087991,0.7055,3671.9,3671.8,1.82118]
[1754528088191,20.2743,3671.9,3671.8,2.30748]
[1754528089592,0.7055,3671.5,3671.4,0.73764]
[1754528089795,1.7503,3671.5,3671.4,1.35934]
[1754528090388,0.7055,3671.2,3671.1,4.5088]
[1754528090588,1.7503,3671.2,3671.1,5.51538]
[1754528090785,1.7503,3671.2,3671.1,3.2078]
[1754528091094,1.7503,3671.2,3671.1,3.4008]
[1754528091296,1.7503,3671.2,3671.1,4.9707]
[1754528093392,1.7503,3671.2,3671.1,3.8871]
[1754528093591,1.7503,3671.2,3671.1,3.4008]
[1754528093992,1.7503,3671.2,3671.1,3.2078]
[1754528094596,1.7503,3671.2,3671.1,3.8295]
[1754528094798,1.7503,3671.2,3671.1,4.4844]
[1754528096299,1.7503,3671.2,3671.1,4.6764]
[1754528096599,1.7503,3671.2,3671.1,4.9707]
[1754528101302,0.708,3670.9,3670.8,0.9766]
[1754528101499,0.708,3670.9,3670.6,3.75255]